bitfinex/quotes_BTCUSD_20220105
["timestamp","ask_amount","ask_price","bid_price","bid_amount"]
[1641425035321,0.26195194,43564.0,43554.0,0.11601052]
[1641425035522,0.26195194,43564.0,43556.0,0.38338185]
[1641425036371,0.26195194,43564.0,43556.0,0.43338185]
[1641425036570,0.26195194,43564.0,43556.0,0.44138185]
[1641425036972,0.26195194,43564.0,43557.0,0.05740346]
[1641425037174,0.25750785,43566.0,43557.0,0.05740346]
[1641425037479,0.35750785,43566.0,43557.0,0.05740346]
[1641425037876,0.1,43566.0,43557.0,0.05740346]
[1641425038075,0.0004,43568.0,43558.0,0.00120905]
[1641425038076,0.77886761,43562.0,43558.0,0.00120905]
[1641425038274,0.77886761,43562.0,43559.0,0.05739585]
[1641425038675,0.77886761,43562.0,43559.0,0.11479385]
[1641425038875,0.77886761,43563.0,43559.0,0.11479385]
[1641425039932,0.77886761,43563.0,43559.0,0.16479385]
[1641425040249,0.77886761,43563.0,43562.0,0.00120664]
[1641425040433,0.0004,43568.0,43562.0,0.29118957]
[1641425040434,0.77886761,43564.0,43562.0,0.29118957]
[1641425040636,0.77836761,43564.0,43563.0,5.016052]
[1641425040837,0.31934782,43564.0,43563.0,5.37471597]
[1641425041032,0.0004,43568.0,43566.0,0.36599834]
[1641425041236,0.0004,43568.0,43567.0,0.408452]
[1641425041833,0.0004,43568.0,43567.0,0.0424]
[1641425042534,0.0004,43568.0,43567.0,0.0464]
[1641425043884,0.0002,43572.0,43567.0,0.408452]
[1641425044074,0.0002,43583.0,43567.0,0.408452]
[1641425044075,0.0118866,43577.0,43567.0,0.408452]
[1641425044275,0.0118866,43577.0,43572.0,0.00123233]
[1641425044475,0.0068866,43577.0,43574.0,0.05738]
[1641425044678,0.0068866,43577.0,43573.0,0.4489896]
[1641425044876,0.0068866,43577.0,43573.0,0.4989896]
[1641425045282,0.0068866,43577.0,43573.0,0.5563696]
[1641425045476,0.0068866,43577.0,43573.0,0.4989896]
[1641425046276,0.0001,43578.0,43576.0,0.00127384]
[1641425046475,0.0001,43578.0,43576.0,0.04367384]
[1641425047077,0.0001,43578.0,43577.0,0.21296014]
[1641425047277,0.0001,43578.0,43577.0,0.57901214]
[1641425047521,0.0001,43578.0,43577.0,0.408452]
[1641425047929,0.0001,43578.0,43577.0,0.62453014]
[1641425048322,0.0001,43578.0,43577.0,0.408452]
[1641425048523,0.0001,43578.0,43577.0,0.514452]
[1641425048722,0.0001,43579.0,43577.0,0.514452]
[1641425048924,0.0001,43585.0,43580.0,0.057359]
[1641425049123,0.0001,43585.0,43584.0,0.00125996]
[1641425049322,0.0001,43585.0,43584.0,0.04365996]
[1641425049522,0.0001,43585.0,43584.0,0.40971196]
[1641425049723,0.0001,43585.0,43584.0,0.45971196]
[1641425050529,0.0001,43585.0,43584.0,0.82705994]
[1641425050726,0.0001,43585.0,43584.0,0.41671196]
[1641425050927,0.0001,43585.0,43584.0,0.05065996]
[1641425051787,0.0001,43585.0,43584.0,0.0494]
[1641425051989,0.0001,43585.0,43584.0,0.0424]
[1641425052288,2.358e-05,43588.0,43584.0,0.0424]
[1641425052686,2.358e-05,43588.0,43584.0,0.0454]
[1641425052886,2.358e-05,43588.0,43584.0,0.04692975]
[1641425053588,0.29729425,43591.0,43584.0,0.04692975]
[1641425053788,0.29229425,43591.0,43584.0,0.04692975]
[1641425053988,0.30368775,43587.0,43584.0,0.04692975]
[1641425054188,0.30368775,43587.0,43584.0,0.04392975]
[1641425054587,0.30368775,43587.0,43584.0,0.04892975]
[1641425055632,0.09999999,43586.0,43584.0,0.00652975]
[1641425055829,0.09999999,43586.0,43584.0,0.00152975]
[1641425056225,0.14999999,43586.0,43584.0,0.00152975]
[1641425056425,0.44963818,43586.0,43584.0,0.00152975]
[1641425056627,0.56163818,43586.0,43584.0,0.00152975]
[1641425056825,0.67641118,43586.0,43584.0,0.00152975]
[1641425057027,0.41163819,43586.0,43584.0,0.00152975]
[1641425057426,0.24489969,43579.0,43574.0,0.00128477]
[1641425058427,0.24489969,43579.0,43575.0,0.00122763]
[1641425058684,0.24789969,43579.0,43575.0,0.00122763]
[1641425058885,0.09999999,43577.0,43575.0,0.00122763]
[1641425059076,0.15739699,43577.0,43575.0,0.00122763]
[1641425059275,1.9287898,43577.0,43564.0,0.00120166]
[1641425059576,0.09999999,43572.0,43555.0,0.057404]
[1641425059778,0.33305096,43559.0,43556.0,0.00120675]
[1641425060076,0.14999999,43572.0,43556.0,0.00120675]
[1641425060077,0.1,43569.0,43556.0,0.00120675]
[1641425060376,0.28775128,43563.0,43556.0,0.22579415]
[1641425060579,0.09999999,43561.0,43556.0,0.00120675]
[1641425060780,0.09999999,43561.0,43556.0,0.06]
[1641425060979,0.09999999,43561.0,43556.0,0.29]
[1641425061282,0.43775128,43563.0,43556.0,0.29]
[1641425061480,0.114831,43563.0,43560.0,0.27702428]
[1641425061678,0.118831,43569.0,43560.0,0.27702428]
[1641425061679,0.004,43569.0,43560.0,0.27702428]
[1641425061876,0.3005,43575.0,43562.0,0.001259]
[1641425062076,1.03886484,43574.0,43562.0,0.001259]
[1641425062278,1.03886484,43574.0,43562.0,0.043659]
[1641425062526,0.33476664,43572.0,43562.0,0.043659]
[1641425062824,0.33476664,43572.0,43566.0,0.35711517]
[1641425063025,0.33476664,43572.0,43564.0,0.057392]
[1641425063227,0.33476664,43572.0,43563.0,0.057394]
[1641425063430,0.33476664,43572.0,43562.0,0.001259]
[1641425063625,0.32476664,43572.0,43562.0,0.001259]
[1641425063825,0.32434301,43574.0,43564.0,0.057393]
[1641425064227,0.32434301,43574.0,43564.0,0.057394]
[1641425064625,0.35034301,43574.0,43564.0,0.057394]
[1641425064826,0.35034301,43574.0,43563.0,0.43059732]
[1641425064827,0.026,43574.0,43565.0,0.057392]
[1641425065125,0.026,43574.0,43563.0,0.54537532]
[1641425065326,0.32243188,43572.0,43565.0,0.057393]
[1641425065526,0.026,43574.0,43563.0,0.43059732]
[1641425065828,0.026,43574.0,43564.0,0.005]
[1641425066031,0.021,43574.0,43564.0,0.062393]
[1641425066271,0.39999222,43577.0,43564.0,0.005]
[1641425066272,0.27572966,43570.0,43564.0,0.005]
[1641425066473,0.27572966,43570.0,43565.0,0.05739079]
[1641425067272,0.27572966,43570.0,43565.0,0.057391]
[1641425067472,0.54048248,43570.0,43564.0,0.005]
[1641425068272,0.39048248,43570.0,43564.0,0.005]
[1641425068676,0.057403,43568.0,43564.0,0.005]
[1641425069173,0.057403,43568.0,43556.0,0.23]
[1641425069174,6.25,43567.0,43556.0,0.23]
[1641425069371,0.057417,43561.0,43556.0,0.23]
[1641425069574,0.32863581,43558.0,43556.0,0.23]
[1641425069772,0.22968389,43564.0,43556.0,0.23]
[1641425070024,0.057421,43559.0,43556.0,0.23]
[1641425070624,0.077421,43559.0,43556.0,0.23]
[1641425071230,0.02,43559.0,43556.0,0.23]
[1641425071927,1.03886484,43568.0,43556.0,0.23]
[1641425072129,1.03886484,43573.0,43559.0,0.05739709]
[1641425072429,1.03886484,43573.0,43566.0,0.4484689]
[1641425072632,1.03886484,43573.0,43566.0,0.4984689]
[1641425072828,0.024,43572.0,43566.0,0.4984689]
[1641425073029,0.024,43572.0,43569.0,0.00120812]
[1641425073229,0.024,43572.0,43571.0,0.00128054]
[1641425074073,1.03886484,43580.0,43573.0,0.41033905]
[1641425074276,0.33117651,43574.0,43571.0,0.00128054]
[1641425074477,1.03886484,43580.0,43566.0,0.114768]
[1641425074677,0.072,43580.0,43566.0,0.10126684]
[1641425074977,0.072,43580.0,43566.0,0.05126684]
[1641425075275,0.072,43580.0,43566.0,0.00126684]
[1641425075477,0.24137775,43575.0,43570.0,0.37087992]
[1641425076676,0.022,43575.0,43570.0,0.37387992]
[1641425077527,0.022,43575.0,43573.0,0.00120137]
[1641425077729,0.022,43575.0,43574.0,0.2871652]
[1641425078029,1.03886484,43584.0,43574.0,0.4445432]
[1641425078226,1.03886484,43584.0,43583.0,0.00126123]
[1641425078427,1.03886484,43584.0,43583.0,0.42795149]
[1641425078627,1.03886484,43584.0,43583.0,0.52795149]
[1641425078827,1.06986484,43584.0,43583.0,0.48295149]
[1641425079032,0.031,43584.0,43583.0,0.04866123]
[1641425079226,0.031,43584.0,43583.0,0.09866123]
[1641425079426,0.031,43584.0,43583.0,0.0474]
[1641425079632,0.031,43584.0,43583.0,0.0974]
[1641425079827,0.031,43584.0,43583.0,0.005]
[1641425080029,0.29018056,43590.0,43580.0,0.44836703]
[1641425080426,0.29018056,43590.0,43580.0,0.49836703]
[1641425080427,0.31437022,43585.0,43580.0,0.49836703]
[1641425080630,0.68536045,43585.0,43580.0,0.05]
[1641425081028,0.31437022,43585.0,43576.0,0.0569328]
[1641425081686,0.31437022,43585.0,43579.0,0.36881741]
[1641425082077,0.057382,43585.0,43579.0,0.36881741]
[1641425082679,0.019,43585.0,43579.0,0.37281741]
[1641425083080,0.019,43585.0,43583.0,0.00127098]
[1641425083280,0.019,43585.0,43583.0,0.17336498]
[1641425083480,0.019,43585.0,43583.0,0.22336498]
[1641425083682,0.019,43585.0,43584.0,0.05]
[1641425083882,0.0001,43590.0,43584.0,0.05736557]
[1641425084187,0.0001,43590.0,43587.0,0.45786816]
[1641425084386,0.0001,43590.0,43587.0,0.51523116]
[1641425084582,0.0001,43590.0,43589.0,0.00123348]
[1641425084783,0.0001,43590.0,43589.0,0.04363348]
[1641425085031,0.0001,43590.0,43589.0,0.45968548]
[1641425086736,0.0001,43590.0,43589.0,0.52504148]
[1641425087133,0.0001,43590.0,43589.0,0.15898948]
[1641425087333,0.0001,43590.0,43589.0,0.20898948]
[1641425087532,0.0001,43590.0,43589.0,0.10898948]
[1641425087735,0.0001,43590.0,43589.0,0.20898948]
[1641425087932,0.0001,43590.0,43589.0,0.57504148]
[1641425088134,0.0001,43590.0,43589.0,0.56704148]
[1641425088775,0.0001,43590.0,43589.0,0.57504148]
[1641425089175,0.0001,43590.0,43589.0,0.51768548]
[1641425089379,0.0001,43590.0,43589.0,0.15163348]
[1641425089577,0.0001,43590.0,43589.0,0.05163348]
[1641425089978,0.0001,43590.0,43589.0,0.008]
[1641425090180,0.31847593,43590.0,43589.0,0.008]
[1641425090377,0.87928004,43590.0,43589.0,0.008]
[1641425090676,1.20470258,43590.0,43582.0,0.01330764]
[1641425090878,1.22142637,43590.0,43582.0,0.01330764]
[1641425091075,0.23827043,43589.0,43582.0,0.01330764]
[1641425091476,0.95271082,43590.0,43582.0,0.01330764]
[1641425091477,0.017,43590.0,43582.0,0.01330764]
[1641425091676,0.017,43590.0,43586.0,0.00129741]
[1641425092078,0.0001,43592.0,43586.0,0.00129741]
[1641425092275,0.0001,43592.0,43589.0,0.0012623]
[1641425092554,0.0001,43592.0,43590.0,0.05736]
[1641425092856,0.0661,43592.0,43591.0,0.00125139]
[1641425093857,0.0001,43599.0,43591.0,0.00125139]
[1641425093858,0.9856,43604.0,43592.0,0.366052]
[1641425094056,0.9856,43604.0,43597.0,0.05856679]
[1641425094256,0.03162674,43605.0,43597.0,0.05856679]
[1641425094458,0.03162674,43605.0,43597.0,0.00121679]
[1641425094661,0.2731235,43600.0,43586.0,0.001217]
[1641425094856,0.2731235,43600.0,43597.0,0.005]
[1641425096056,0.2731235,43600.0,43593.0,0.00126203]
[1641425096284,0.76012886,43602.0,43593.0,0.00126203]
[1641425096285,0.08164902,43602.0,43593.0,0.00126203]
[1641425096883,0.08164902,43602.0,43593.0,0.01026203]
[1641425097189,0.07664902,43602.0,43593.0,0.01026203]
[1641425097384,0.30860142,43604.0,43593.0,0.01026203]
[1641425097584,0.057358,43603.0,43593.0,0.01026203]
[1641425097884,0.001,43600.0,43593.0,0.01026203]
[1641425098084,0.001,43600.0,43593.0,0.00126203]
[1641425098985,0.001,43600.0,43593.0,0.01026203]
[1641425099926,0.30785673,43597.0,43593.0,0.06761503]
[1641425100126,0.30785673,43597.0,43593.0,0.05861503]
[1641425100326,0.32960105,43599.0,43593.0,0.05861503]
[1641425100929,0.32960105,43599.0,43593.0,0.06861503]
[1641425101928,0.32960105,43599.0,43594.0,0.057353]
[1641425102929,0.32960105,43599.0,43594.0,0.293353]
[1641425103776,0.32960105,43599.0,43594.0,0.236]
[1641425104179,0.001,43600.0,43594.0,0.23]
[1641425104375,0.001,43600.0,43594.0,0.28]
[1641425104777,0.31225654,43604.0,43595.0,0.7]
[1641425104985,0.31225654,43604.0,43594.0,0.296354]
[1641425105178,0.25357657,43603.0,43594.0,0.296354]
[1641425105979,0.31093357,43603.0,43594.0,0.239]
[1641425106177,0.31093357,43603.0,43594.0,0.23]
[1641425106377,0.31837573,43599.0,43594.0,0.23]
[1641425106578,0.25357657,43603.0,43594.0,0.23]
[1641425106780,0.03162674,43605.0,43595.0,0.2290461]
[1641425106978,0.03162674,43605.0,43603.0,0.00126073]
[1641425107435,0.03162674,43605.0,43594.0,0.3814]
[1641425107636,0.03162674,43605.0,43598.0,0.00125163]
[1641425107637,0.28528154,43603.0,43598.0,0.00125163]
[1641425108633,0.28528154,43603.0,43598.0,0.05860063]
[1641425108833,0.28528154,43603.0,43599.0,0.057347]
[1641425109034,0.28528154,43603.0,43598.0,0.008]
[1641425109237,0.33528154,43603.0,43598.0,0.00937681]
[1641425109534,6.2,43602.0,43584.0,0.00127463]
[1641425109734,0.17210057,43600.0,43584.0,0.057366]
[1641425109935,0.27389092,43593.0,43586.0,0.38037982]
[1641425110139,0.114731,43601.0,43586.0,0.38037982]
[1641425110338,0.2867,43602.0,43589.0,0.05859887]
[1641425110534,0.2867,43602.0,43589.0,0.00124379]
[1641425110734,0.2867,43602.0,43589.0,0.02824379]
[1641425111205,0.62938622,43597.0,43589.0,0.02824379]
[1641425111399,0.68674922,43597.0,43589.0,0.02824379]
[1641425111796,0.78674922,43597.0,43589.0,0.02824379]
[1641425111999,0.68674922,43597.0,43589.0,0.00124379]
[1641425112397,0.78674922,43597.0,43589.0,0.00124379]
[1641425112803,0.69274922,43597.0,43589.0,0.01724379]
[1641425114102,0.057361,43599.0,43589.0,0.00424379]
[1641425114301,0.2867,43602.0,43590.0,0.00122717]
[1641425114502,0.2867,43602.0,43594.0,0.00121383]
[1641425114701,0.03162674,43605.0,43594.0,0.00121383]
[1641425114935,0.03162674,43605.0,43595.0,0.0424]
[1641425115137,0.28914491,43599.0,43595.0,0.0424]
[1641425115937,0.24966402,43596.0,43595.0,0.0424]
[1641425116136,0.30702802,43596.0,43595.0,0.0424]
[1641425116338,0.24966402,43596.0,43595.0,0.0424]
[1641425116536,0.28914491,43599.0,43595.0,0.0424]
[1641425116939,0.007,43596.0,43595.0,0.0524]
[1641425117339,0.17184491,43599.0,43595.0,0.0524]
[1641425118039,0.17184491,43599.0,43595.0,0.0424]
[1641425118882,0.17184491,43599.0,43595.0,0.0614]
[1641425119685,0.25748286,43598.0,43595.0,0.02022706]
[1641425120083,0.17184491,43599.0,43595.0,0.00122706]
[1641425120487,0.60273199,43601.0,43595.0,0.00122706]
[1641425120685,0.27203226,43601.0,43595.0,0.00122706]
[1641425120884,0.007,43599.0,43595.0,0.01122706]
[1641425122086,0.35898608,43600.0,43595.0,0.00122706]
[1641425122839,0.37098608,43600.0,43595.0,0.01022706]
[1641425124039,0.37098608,43600.0,43595.0,0.00122706]
[1641425124240,0.35898608,43600.0,43595.0,0.00122706]
[1641425124840,0.36798608,43600.0,43595.0,0.01222706]
[1641425125241,0.35798608,43600.0,43595.0,0.01222706]
[1641425126198,0.34898608,43600.0,43595.0,0.00122706]
[1641425126788,0.008,43600.0,43595.0,0.01222706]
[1641425127391,0.11472886,43599.0,43595.0,0.01222706]
[1641425127590,0.057368,43599.0,43595.0,0.01222706]
[1641425127793,0.01222706,43595.0,43589.0,0.013]
[1641425128196,0.86313428,43594.0,43589.0,0.013]
[1641425128390,0.85813428,43594.0,43589.0,0.013]
[1641425128591,0.11475642,43593.0,43589.0,0.013]
[1641425128790,0.05738,43592.0,43589.0,0.013]
[1641425128991,0.057379,43591.0,43589.0,0.013]
[1641425129393,0.057379,43591.0,43580.0,0.22923038]
[1641425129593,0.114765,43590.0,43577.0,0.00127285]
[1641425129795,0.008,43594.0,43578.0,0.0424]
[1641425130035,0.01222706,43595.0,43590.0,0.0012057]
[1641425130036,0.06959106,43595.0,43590.0,0.0012057]
[1641425130237,0.06931502,43595.0,43590.0,0.0012057]
[1641425130437,0.00970313,43595.0,43590.0,0.0012057]
[1641425130635,0.00970313,43595.0,43585.0,0.0424]
[1641425130636,0.25072812,43594.0,43588.0,0.37347164]
[1641425130841,0.00970313,43595.0,43589.0,0.27163038]
[1641425131040,0.00970313,43595.0,43592.0,0.00127748]
[1641425131239,0.00970313,43595.0,43594.0,0.00126184]
[1641425131437,0.00970313,43595.0,43594.0,0.04366184]
[1641425131635,0.00970313,43595.0,43594.0,0.09366184]
[1641425131837,0.00970313,43595.0,43594.0,0.41765996]
[1641425132035,0.00970313,43595.0,43594.0,0.0924]
[1641425132639,0.00970313,43595.0,43594.0,0.0424]
[1641425132937,0.00970313,43595.0,43594.0,0.0924]
[1641425133236,0.00970313,43595.0,43594.0,0.0424]
[1641425134287,0.00970313,43595.0,43594.0,0.2724]
[1641425134988,0.01070313,43595.0,43594.0,0.2724]
[1641425135388,0.01044498,43595.0,43594.0,0.2724]
[1641425135992,0.00544498,43595.0,43594.0,0.2724]
[1641425136187,0.00444498,43595.0,43594.0,0.2724]
[1641425136886,0.00944498,43595.0,43594.0,0.2724]
[1641425137433,0.00944498,43595.0,43594.0,0.3224]
[1641425138036,0.00944498,43595.0,43594.0,0.90441006]
[1641425138233,0.00444498,43595.0,43594.0,0.90570494]
[1641425138434,0.00444498,43595.0,43594.0,1.00570494]
[1641425138637,0.00444498,43595.0,43594.0,0.78974688]
[1641425138834,0.00444498,43595.0,43594.0,0.69974688]
[1641425140135,0.00444498,43595.0,43594.0,0.91693523]
[1641425140834,0.00444498,43595.0,43594.0,0.91641598]
[1641425141033,0.00444498,43595.0,43594.0,0.9171867]
[1641425141692,0.00444498,43595.0,43594.0,0.69974688]
[1641425142092,0.00444498,43595.0,43594.0,0.33369488]
[1641425146835,0.01044498,43595.0,43594.0,0.33369488]
[1641425147535,0.01044498,43595.0,43594.0,0.28369488]
[1641425147738,0.01044498,43595.0,43594.0,0.24]
[1641425147936,3.05,43594.0,43587.0,0.01333577]
[1641425148138,0.114755,43592.0,43587.0,0.01333577]
[1641425148338,0.057377,43592.0,43587.0,0.01333577]
[1641425148536,0.38074828,43591.0,43587.0,0.01333577]
[1641425148789,0.93499508,43591.0,43587.0,0.01333577]
[1641425148993,0.057386,43589.0,43587.0,0.01333577]
[1641425149589,0.11476729,43589.0,43587.0,0.01333577]
[1641425150189,0.17214929,43589.0,43574.0,0.00123125]
[1641425150387,0.3327916,43589.0,43574.0,0.00123125]
[1641425150592,0.00527239,43587.0,43572.0,0.00123125]
[1641425150796,0.00527239,43587.0,43570.0,0.9554]
[1641425150797,0.057385,43580.0,43574.0,0.057385]
[1641425150992,0.057385,43580.0,43573.0,0.01333601]
[1641425151190,0.36192627,43577.0,43573.0,0.01333601]
[1641425151601,0.33181211,43577.0,43573.0,0.01333601]
[1641425152292,0.057395,43575.0,43572.0,0.37293062]
[1641425152539,0.057395,43575.0,43568.0,0.057392]
[1641425152940,0.061395,43575.0,43568.0,0.057392]
[1641425154150,0.29393733,43589.0,43569.0,0.21964878]
[1641425154341,0.11476947,43588.0,43571.0,0.00128403]
[1641425154739,0.29396493,43589.0,43569.0,0.48963281]
[1641425154940,0.30953415,43583.0,43571.0,0.0012229]
[1641425155142,0.25593861,43581.0,43571.0,0.0012229]
[1641425155541,0.25593861,43581.0,43575.0,0.057384]
[1641425155739,0.31332261,43581.0,43575.0,0.057384]
[1641425155940,0.30947237,43577.0,43575.0,0.057384]
[1641425156205,0.30947237,43577.0,43570.0,0.27961337]
[1641425156395,0.25593861,43581.0,43570.0,0.27961337]
[1641425156594,0.3133268,43581.0,43570.0,0.27961337]
[1641425156801,0.057386,43580.0,43570.0,0.59905381]
[1641425156997,0.057386,43580.0,43570.0,0.29461337]
[1641425157195,0.36193861,43581.0,43570.0,0.29461337]
[1641425157395,0.26193861,43581.0,43570.0,0.29461337]
[1641425157595,0.36193861,43581.0,43570.0,0.29461337]
[1641425157995,0.36193861,43581.0,43570.0,0.34461337]
[1641425158196,0.057388,43578.0,43570.0,0.32961337]
[1641425158995,0.057388,43578.0,43573.0,0.057387]
[1641425159399,0.057388,43578.0,43573.0,0.02262853]
[1641425159796,0.27627299,43576.0,43573.0,0.02262853]
[1641425160036,0.33366399,43576.0,43570.0,0.117391]
[1641425160237,0.33366399,43576.0,43570.0,0.057391]
[1641425160438,0.43366399,43576.0,43569.0,0.23]
[1641425160836,0.43766399,43576.0,43570.0,0.022]
[1641425161237,0.33127632,43572.0,43570.0,0.022]
[1641425161441,0.0574,43571.0,43570.0,0.022]
[1641425161942,0.1074,43571.0,43570.0,0.022]
[1641425162138,0.1074,43571.0,43569.0,0.23]
[1641425162339,0.1648023,43571.0,43569.0,0.23]
[1641425162937,0.1868023,43571.0,43569.0,0.234]
[1641425163539,0.18657208,43571.0,43569.0,0.234]
[1641425164197,0.0574,43571.0,43569.0,0.23]
[1641425164396,0.057394,43574.0,43569.0,0.23]
[1641425164599,0.06884272,43578.0,43569.0,0.23]
[1641425164795,0.06884272,43578.0,43571.0,0.057388]
[1641425165596,0.06884272,43578.0,43573.0,0.00130603]
[1641425165898,0.06884272,43578.0,43573.0,0.05869303]
[1641425166898,0.06884272,43578.0,43573.0,0.05969303]
[1641425167300,0.06884272,43578.0,43573.0,0.00230603]
[1641425167943,0.32661032,43575.0,43573.0,0.00230603]
[1641425168141,0.5376868,43575.0,43573.0,0.00130603]
[1641425168542,0.23784323,43575.0,43573.0,0.00130603]
[1641425168943,0.23756715,43575.0,43573.0,0.00430603]
[1641425169747,0.29495915,43575.0,43573.0,0.00430603]
[1641425170145,0.29495915,43575.0,43573.0,0.00130603]
[1641425170946,0.00120084,43574.0,43573.0,0.00130603]
[1641425172992,3.01320084,43574.0,43573.0,0.00230603]
[1641425173291,0.11320084,43574.0,43573.0,0.00230603]
[1641425174192,0.10120084,43574.0,43573.0,0.00130603]
[1641425174391,0.00120084,43574.0,43573.0,0.00130603]
[1641425177036,0.114787,43575.0,43573.0,0.00130603]
[1641425177338,0.057392,43575.0,43573.0,0.00130603]
[1641425179089,0.03527446,43578.0,43573.0,0.00130603]
[1641425179687,0.31229204,43580.0,43573.0,0.00130603]
[1641425179889,0.72623348,43580.0,43573.0,0.00130603]
[1641425180094,0.29486773,43583.0,43575.0,0.43499118]
[1641425180393,0.09098434,43593.0,43575.0,0.48499118]
[1641425180589,0.2885,43592.0,43579.0,0.00129429]
[1641425180991,0.2885,43592.0,43582.0,0.057372]
[1641425180992,0.00527239,43587.0,43582.0,0.057372]
[1641425181191,0.0002,43606.0,43600.0,2.98339142]
[1641425181397,0.0002,43606.0,43603.0,0.00122943]
[1641425181590,0.0002,43606.0,43604.0,0.408452]
[1641425181591,0.0001,43605.0,43604.0,0.408452]
[1641425181989,0.0001,43605.0,43604.0,0.458452]
[1641425182190,0.0001,43605.0,43604.0,0.658452]
[1641425182440,0.0001,43605.0,43604.0,1.246452]
[1641425182645,0.0001,43605.0,43604.0,1.346452]
[1641425182844,0.0001,43606.0,43604.0,1.346452]
[1641425183044,0.0001,43606.0,43605.0,2.366052]
[1641425183242,0.0001,43606.0,43605.0,3.14767768]
[1641425183441,0.0003,43609.0,43608.0,0.0724]
[1641425183643,0.0003,43609.0,43608.0,0.0424]
[1641425185147,0.0003,43609.0,43608.0,0.0484]
[1641425186194,0.0003,43609.0,43608.0,0.0424]
[1641425186789,0.0003,43609.0,43605.0,0.68799]
[1641425186790,0.44816212,43609.0,43605.0,0.68799]
[1641425186989,0.44816212,43609.0,43608.0,0.002]
[1641425187190,0.82024507,43609.0,43608.0,0.002]
[1641425187591,0.82024507,43609.0,43597.0,0.18245991]
[1641425187592,6.15,43608.0,43597.0,0.18245991]
[1641425187990,0.057363,43604.0,43597.0,0.18245991]
[1641425188195,0.17211105,43603.0,43597.0,0.18245991]
[1641425188392,0.32555723,43602.0,43597.0,0.18245991]
[1641425188591,0.7148518,43602.0,43597.0,0.18245991]
[1641425188791,0.7648518,43602.0,43597.0,0.18245991]
[1641425188991,0.8332228,43602.0,43597.0,0.18245991]
[1641425190040,0.89059225,43602.0,43597.0,0.18245991]
[1641425190448,0.87959225,43602.0,43597.0,0.18245991]
[1641425191040,0.92459225,43602.0,43600.0,2.98469391]
[1641425191939,0.59903502,43602.0,43600.0,2.98469391]
[1641425192143,0.202371,43602.0,43600.0,2.98469391]
[1641425192340,0.28675169,43604.0,43600.0,2.98469391]
[1641425192842,0.0003,43609.0,43600.0,2.98469391]
[1641425193045,0.0003,43609.0,43603.0,0.44751691]
[1641425193241,0.2350841,43609.0,43603.0,0.44751691]
[1641425193703,0.0003,43609.0,43604.0,0.21531383]
[1641425193893,0.0003,43609.0,43607.0,0.00125724]
[1641425194093,0.0003,43609.0,43608.0,5.866052]
[1641425194691,0.0003,43609.0,43608.0,0.67285735]
[1641425194891,0.0003,43609.0,43608.0,1.15830898]
[1641425195094,0.0003,43609.0,43608.0,0.85150363]
[1641425195895,0.0003,43609.0,43608.0,0.606052]
[1641425196195,0.0003,43609.0,43608.0,0.23]
[1641425196398,0.0003,43609.0,43608.0,0.23130134]
[1641425196894,0.0003,43609.0,43608.0,0.24130134]
[1641425197542,0.0002,43609.0,43608.0,0.83123803]
[1641425197742,0.0002,43609.0,43608.0,0.87363803]
[1641425197943,0.0002,43609.0,43608.0,2.32363803]
[1641425198141,0.0002,43609.0,43608.0,1.01363803]
[1641425198347,0.0002,43615.0,43613.0,1.2]
[1641425198549,0.0004,43625.0,43619.0,1.1]
[1641425198550,0.0004,43620.0,43619.0,1.1]
[1641425198750,0.0002,43623.0,43622.0,0.0001]
[1641425198946,0.0004,43629.0,43626.0,0.366052]
[1641425199147,0.0001,43632.0,43630.0,0.366052]
[1641425199346,0.0005,43640.0,43632.0,0.0001]
[1641425199347,0.0003,43636.0,43632.0,0.0001]
[1641425199548,1.29888105,43647.0,43644.0,0.23659201]
[1641425199549,0.09326752,43647.0,43644.0,0.23659201]
[1641425199743,0.0001,43648.0,43645.0,1.08520943]
[1641425200043,0.0001,43648.0,43647.0,4.36725879]
[1641425200242,0.0001,43648.0,43647.0,0.40965879]
[1641425200443,0.0001,43648.0,43647.0,0.73772664]
[1641425200847,0.0001,43648.0,43647.0,0.40965879]
[1641425201043,0.0001,43648.0,43647.0,0.46865879]
[1641425201694,0.0001,43648.0,43647.0,0.0103026]
[1641425201893,0.0001,43648.0,43640.0,0.01333386]
[1641425201894,0.00128419,43647.0,43640.0,0.01333386]
[1641425202292,0.0001,43648.0,43640.0,0.01333386]
[1641425202493,0.2589176,43645.0,43640.0,0.01333386]
[1641425202695,0.00129002,43642.0,43640.0,0.01333386]
[1641425202893,6.51675808,43641.0,43640.0,0.01333386]
[1641425203095,0.46675808,43641.0,43640.0,0.01633386]
[1641425203297,0.157314,43641.0,43640.0,0.01633386]
[1641425203498,0.00129002,43642.0,43640.0,0.01633386]
[1641425203694,0.38457005,43644.0,43640.0,0.01633386]
[1641425204294,0.74897872,43644.0,43633.0,0.34618049]
[1641425204494,0.74897872,43644.0,43633.0,0.39618049]
[1641425204694,0.71042782,43644.0,43633.0,0.39618049]
[1641425204937,0.71642782,43644.0,43633.0,0.40618049]
[1641425205738,0.65911982,43644.0,43634.0,0.057306]
[1641425205941,0.31755524,43637.0,43633.0,0.06]
[1641425206147,0.41755524,43637.0,43628.0,2.77718079]
[1641425206339,0.41755524,43637.0,43621.0,0.00121684]
[1641425206540,0.28119591,43636.0,43621.0,0.00121684]
[1641425206740,0.29615964,43630.0,43619.0,0.33521006]
[1641425206940,0.29615964,43630.0,43621.0,0.04722629]
[1641425207141,0.31249371,43625.0,43621.0,0.04722629]
[1641425208143,0.34615964,43630.0,43621.0,0.04722629]
[1641425208342,0.157324,43632.0,43621.0,0.00122629]
[1641425208343,0.057324,43632.0,43621.0,0.00122629]
[1641425208544,0.1,43638.0,43622.0,0.00122803]
[1641425208805,0.24483964,43639.0,43627.0,0.41290557]
[1641425208997,0.00120133,43641.0,43627.0,0.41290557]
[1641425209199,0.27468661,43636.0,43627.0,0.41290557]
[1641425209397,0.26707801,43638.0,43627.0,0.41290557]
[1641425209598,0.00120133,43641.0,43627.0,0.46290557]
[1641425209798,0.05851333,43641.0,43627.0,0.46290557]
[1641425210199,7.974e-05,43640.0,43627.0,0.4641719]
[1641425210599,7.974e-05,43640.0,43633.0,0.30574992]
[1641425210801,7.974e-05,43640.0,43633.0,0.35574992]
[1641425211198,7.974e-05,43640.0,43633.0,0.05]
[1641425211405,7.974e-05,43640.0,43631.0,0.057305]
[1641425211604,7.974e-05,43640.0,43632.0,0.00121361]